{"text_format":"1","workbook":"xlsx","n_sheets":9,"sheets":["Панель управления","Фирма1","КорпФирма1","КорпФирма2","ИП1","ИП2","ИП3","Карта","Карта1"],"not_rendered":{"charts":0,"images":0,"macros":1,"external_links":1,"defined_names":4,"comments":0,"pivot_tables":0},"unopened":[],"bounds":{"document_bytes":16777216,"sheet_cells":100000,"rows_first":2000,"rows_last":500,"rows_between":2000,"halvings":0,"cell_chars":16384,"cell_head_chars":4096},"cells_cut":0,"cells_raw":0,"read":"whole","date_system":"1900"}

{"sheet":"Панель управления","index":0,"n_rows":1,"n_cols":9,"rows_kept":1,"cut":false,"hidden":false,"merged":[]}
["Фирма",null,"КорпФирма",null,"ИП",null,"КорпИП",null,"Карта"]

{"sheet":"Фирма1","index":1,"n_rows":300,"n_cols":9,"rows_kept":300,"cut":false,"hidden":false,"merged":[]}
[null,null,null,"Фирма1"]
[]
[null,null,"Остаток всего","Оборот","Лимит","Остаток лимита"]
[null,null,{"$f":"H300","v":0},{"$f":"SUM(F7:F299)","v":0},0,{"$f":"E4-D4","v":0}]
[]
[null,"№","Источник","Группа","Поступление","Выбытие","Дата","Остаток","Примечания"]
[null,1,null,"Поступление",null,null,null,{"$f":"E7-F7","v":0}]
[null,{"$f":"B7+1","v":2},null,"Производство",null,null,null,{"$f":"H7+E8-F8","v":0}]
[null,{"$f":"B8+1","v":3},null,"брак",null,null,null,0]
[null,4,null,"доработка",null,null,null,0]
[null,5,null,"Склад",null,null,null,0]
[null,6,null,null,null,null,null,0]
[null,7,null,null,null,null,null,0]
[null,8,null,null,null,null,null,0]
[null,9,null,null,null,null,null,0]
[null,10,null,null,null,null,null,0]
[null,11,null,null,null,null,null,0]
[null,12,null,null,null,null,null,0]
[null,13,null,null,null,null,null,0]
[null,14,null,null,null,null,null,0]
[null,15,null,null,null,null,null,0]
[null,16,null,null,null,null,null,0]
[null,17,null,null,null,null,null,0]
[null,18,null,null,null,null,null,0]
[null,19,null,null,null,null,null,0]
[null,20,null,null,null,null,null,0]
[null,21,null,null,null,null,null,0]
[null,22,null,null,null,null,null,0]
[null,23,null,null,null,null,null,0]
[null,24,null,null,null,null,null,0]
[null,25,null,null,null,null,null,0]
[null,26,null,null,null,null,null,0]
[null,27,null,null,null,null,null,0]
[null,28,null,null,null,null,null,0]
[null,29,null,null,null,null,null,0]
[null,30,null,null,null,null,null,0]
[null,31,null,null,null,null,null,0]
[null,32,null,null,null,null,null,0]
[null,33,null,null,null,null,null,0]
[null,34,null,null,null,null,null,0]
[null,35,null,null,null,null,null,0]
[null,36,null,null,null,null,null,0]
[null,37,null,null,null,null,null,0]
[null,38,null,null,null,null,null,0]
[null,39,null,null,null,null,null,0]
[null,40,null,null,null,null,null,0]
[null,41,null,null,null,null,null,0]
[null,42,null,null,null,null,null,0]
[null,43,null,null,null,null,null,0]
[null,44,null,null,null,null,null,0]
[null,45,null,null,null,null,null,0]
[null,46,null,null,null,null,null,0]
[null,47,null,null,null,null,null,0]
[null,48,null,null,null,null,null,0]
[null,49,null,null,null,null,null,0]
[null,50,null,null,null,null,null,0]
[null,51,null,null,null,null,null,0]
[null,52,null,null,null,null,null,0]
[null,53,null,null,null,null,null,0]
[null,54,null,null,null,null,null,0]
[null,55,null,null,null,null,null,0]
[null,56,null,null,null,null,null,0]
[null,57,null,null,null,null,null,0]
[null,58,null,null,null,null,null,0]
[null,59,null,null,null,null,null,0]
[null,60,null,null,null,null,null,0]
[null,61,null,null,null,null,null,0]
[null,62,null,null,null,null,null,0]
[null,63,null,null,null,null,null,0]
[null,64,null,null,null,null,null,0]
[null,65,null,null,null,null,null,0]
[null,66,null,null,null,null,null,{"$f":"H71+E72-F72","v":0}]
[null,{"$f":"B72+1","v":67},null,null,null,null,null,0]
[null,68,null,null,null,null,null,0]
[null,69,null,null,null,null,null,0]
[null,70,null,null,null,null,null,0]
[null,71,null,null,null,null,null,0]
[null,72,null,null,null,null,null,0]
[null,73,null,null,null,null,null,0]
[null,74,null,null,null,null,null,0]
[null,75,null,null,null,null,null,0]
[null,76,null,null,null,null,null,0]
[null,77,null,null,null,null,null,0]
[null,78,null,null,null,null,null,0]
[null,79,null,null,null,null,null,0]
[null,80,null,null,null,null,null,0]
[null,81,null,null,null,null,null,0]
[null,82,null,null,null,null,null,0]
[null,83,null,null,null,null,null,0]
[null,84,null,null,null,null,null,0]
[null,85,null,null,null,null,null,0]
[null,86,null,null,null,null,null,0]
[null,87,null,null,null,null,null,0]
[null,88,null,null,null,null,null,0]
[null,89,null,null,null,null,null,0]
[null,90,null,null,null,null,null,0]
[null,91,null,null,null,null,null,0]
[null,92,null,null,null,null,null,0]
[null,93,null,null,null,null,null,0]
[null,94,null,null,null,null,null,0]
[null,95,null,null,null,null,null,0]
[null,96,null,null,null,null,null,0]
[null,97,null,null,null,null,null,0]
[null,null,null,null,null,null,null,0]
[null,null,null,null,null,null,null,0]
[null,null,null,null,null,null,null,0]
[null,null,null,null,null,null,null,0]
[null,null,null,null,null,null,null,0]
[null,null,null,null,null,null,null,0]
[null,null,null,null,null,null,null,0]
[null,null,null,null,null,null,null,0]
[null,null,null,null,null,null,null,0]
[null,null,null,null,null,null,null,0]
[null,null,null,null,null,null,null,0]
[null,null,null,null,null,null,null,0]
[null,null,null,null,null,null,null,0]
[null,null,null,null,null,null,null,0]
[null,null,null,null,null,null,null,0]
[null,null,null,null,null,null,null,0]
[null,null,null,null,null,null,null,0]
[null,null,null,null,null,null,null,0]
[null,null,null,null,null,null,null,0]
[null,null,null,null,null,null,null,0]
[null,null,null,null,null,null,null,0]
[null,null,null,null,null,null,null,0]
[null,null,null,null,null,null,null,0]
[null,null,null,null,null,null,null,0]
[null,null,null,null,null,null,null,0]
[null,null,null,null,null,null,null,0]
[null,null,null,null,null,null,null,0]
[null,null,null,null,null,null,null,0]
[null,null,null,null,null,null,null,0]
[null,null,null,null,null,null,null,0]
[null,null,null,null,null,null,null,0]
[null,null,null,null,null,null,null,0]
[null,null,null,null,null,null,null,{"$f":"H135+E136-F136","v":0}]
[null,null,null,null,null,null,null,0]
[null,null,null,null,null,null,null,0]
[null,null,null,null,null,null,null,0]
[null,null,null,null,null,null,null,0]
[null,null,null,null,null,null,null,0]
[null,null,null,null,null,null,null,0]
[null,null,null,null,null,null,null,0]
[null,null,null,null,null,null,null,0]
[null,null,null,null,null,null,null,0]
[null,null,null,null,null,null,null,0]
[null,null,null,null,null,null,null,0]
[null,null,null,null,null,null,null,0]
[null,null,null,null,null,null,null,0]
[null,null,null,null,null,null,null,0]
[null,null,null,null,null,null,null,0]
[null,null,null,null,null,null,null,0]
[null,null,null,null,null,null,null,0]
[null,null,null,null,null,null,null,0]
[null,null,null,null,null,null,null,0]
[null,null,null,null,null,null,null,0]
[null,null,null,null,null,null,null,0]
[null,null,null,null,null,null,null,0]
[null,null,null,null,null,null,null,0]
[null,null,null,null,null,null,null,0]
[null,null,null,null,null,null,null,0]
[null,null,null,null,null,null,null,0]
[null,null,null,null,null,null,null,0]
[null,null,null,null,null,null,null,0]
[null,null,null,null,null,null,null,0]
[null,null,null,null,null,null,null,0]
[null,null,null,null,null,null,null,0]
[null,null,null,null,null,null,null,0]
[null,null,null,null,null,null,null,0]
[null,null,null,null,null,null,null,0]
[null,null,null,null,null,null,null,0]
[null,null,null,null,null,null,null,0]
[null,null,null,null,null,null,null,0]
[null,null,null,null,null,null,null,0]
[null,null,null,null,null,null,null,0]
[null,null,null,null,null,null,null,0]
[null,null,null,null,null,null,null,0]
[null,null,null,null,null,null,null,0]
[null,null,null,null,null,null,null,0]
[null,null,null,null,null,null,null,0]
[null,null,null,null,null,null,null,0]
[null,null,null,null,null,null,null,0]
[null,null,null,null,null,null,null,0]
[null,null,null,null,null,null,null,0]
[null,null,null,null,null,null,null,0]
[null,null,null,null,null,null,null,0]
[null,null,null,null,null,null,null,0]
[null,null,null,null,null,null,null,0]
[null,null,null,null,null,null,null,0]
[null,null,null,null,null,null,null,0]
[null,null,null,null,null,null,null,0]
[null,null,null,null,null,null,null,0]
[null,null,null,null,null,null,null,0]
[null,null,null,null,null,null,null,0]
[null,null,null,null,null,null,null,0]
[null,null,null,null,null,null,null,0]
[null,null,null,null,null,null,null,0]
[null,null,null,null,null,null,null,0]
[null,null,null,null,null,null,null,0]
[null,null,null,null,null,null,null,{"$f":"H199+E200-F200","v":0}]
[null,null,null,null,null,null,null,0]
[null,null,null,null,null,null,null,0]
[null,null,null,null,null,null,null,0]
[null,null,null,null,null,null,null,0]
[null,null,null,null,null,null,null,0]
[null,null,null,null,null,null,null,0]
[null,null,null,null,null,null,null,0]
[null,null,null,null,null,null,null,0]
[null,null,null,null,null,null,null,0]
[null,null,null,null,null,null,null,0]
[null,null,null,null,null,null,null,0]
[null,null,null,null,null,null,null,0]
[null,null,null,null,null,null,null,0]
[null,null,null,null,null,null,null,0]
[null,null,null,null,null,null,null,0]
[null,null,null,null,null,null,null,0]
[null,null,null,null,null,null,null,0]
[null,null,null,null,null,null,null,0]
[null,null,null,null,null,null,null,0]
[null,null,null,null,null,null,null,0]
[null,null,null,null,null,null,null,0]
[null,null,null,null,null,null,null,0]
[null,null,null,null,null,null,null,0]
[null,null,null,null,null,null,null,0]
[null,null,null,null,null,null,null,0]
[null,null,null,null,null,null,null,0]
[null,null,null,null,null,null,null,0]
[null,null,null,null,null,null,null,0]
[null,null,null,null,null,null,null,0]
[null,null,null,null,null,null,null,0]
[null,null,null,null,null,null,null,0]
[null,null,null,null,null,null,null,0]
[null,null,null,null,null,null,null,0]
[null,null,null,null,null,null,null,0]
[null,null,null,null,null,null,null,0]
[null,null,null,null,null,null,null,0]
[null,null,null,null,null,null,null,0]
[null,null,null,null,null,null,null,0]
[null,null,null,null,null,null,null,0]
[null,null,null,null,null,null,null,0]
[null,null,null,null,null,null,null,0]
[null,null,null,null,null,null,null,0]
[null,null,null,null,null,null,null,0]
[null,null,null,null,null,null,null,0]
[null,null,null,null,null,null,null,0]
[null,null,null,null,null,null,null,0]
[null,null,null,null,null,null,null,0]
[null,null,null,null,null,null,null,0]
[null,null,null,null,null,null,null,0]
[null,null,null,null,null,null,null,0]
[null,null,null,null,null,null,null,0]
[null,null,null,null,null,null,null,0]
[null,null,null,null,null,null,null,0]
[null,null,null,null,null,null,null,0]
[null,null,null,null,null,null,null,0]
[null,null,null,null,null,null,null,0]
[null,null,null,null,null,null,null,0]
[null,null,null,null,null,null,null,0]
[null,null,null,null,null,null,null,0]
[null,null,null,null,null,null,null,0]
[null,null,null,null,null,null,null,0]
[null,null,null,null,null,null,null,0]
[null,null,null,null,null,null,null,0]
[null,null,null,null,null,null,null,{"$f":"H263+E264-F264","v":0}]
[null,null,null,null,null,null,null,0]
[null,null,null,null,null,null,null,0]
[null,null,null,null,null,null,null,0]
[null,null,null,null,null,null,null,0]
[null,null,null,null,null,null,null,0]
[null,null,null,null,null,null,null,0]
[null,null,null,null,null,null,null,0]
[null,null,null,null,null,null,null,0]
[null,null,null,null,null,null,null,0]
[null,null,null,null,null,null,null,0]
[null,null,null,null,null,null,null,0]
[null,null,null,null,null,null,null,0]
[null,null,null,null,null,null,null,0]
[null,null,null,null,null,null,null,0]
[null,null,null,null,null,null,null,0]
[null,null,null,null,null,null,null,0]
[null,null,null,null,null,null,null,0]
[null,null,null,null,null,null,null,0]
[null,null,null,null,null,null,null,0]
[null,null,null,null,null,null,null,0]
[null,null,null,null,null,null,null,0]
[null,null,null,null,null,null,null,0]
[null,null,null,null,null,null,null,0]
[null,null,null,null,null,null,null,0]
[null,null,null,null,null,null,null,0]
[null,null,null,null,null,null,null,0]
[null,null,null,null,null,null,null,0]
[null,null,null,null,null,null,null,0]
[null,null,null,null,null,null,null,0]
[null,null,null,null,null,null,null,0]
[null,null,null,null,null,null,null,0]
[null,null,null,null,null,null,null,0]
[null,null,null,null,null,null,null,0]
[null,null,null,null,null,null,null,0]
[null,null,null,null,null,null,null,0]
[null,null,null,null,null,null,null,{"$f":"H299","v":0}]

{"sheet":"КорпФирма1","index":2,"n_rows":300,"n_cols":9,"rows_kept":300,"cut":false,"hidden":false,"merged":[]}
[null,null,null,"КорпФирма1"]
[]
[null,null,"Остаток всего","Оборот","Лимит","Остаток лимита"]
[null,null,{"$f":"H300","v":-100},{"$f":"SUM(F7:F299)","v":100},0,{"$f":"E4-D4","v":-100}]
[]
[null,"№","Источник","Группа","Поступление","Выбытие","Дата","Остаток","Примечания"]
[null,1,null,"Поступление",null,null,null,{"$f":"E7-F7","v":0}]
[null,{"$f":"B7+1","v":2},null,"Производство",null,null,null,{"$f":"H7+E8-F8","v":0}]
[null,{"$f":"B8+1","v":3},null,"брак",null,null,null,0]
[null,4,null,"доработка",null,null,null,0]
[null,5,null,"Склад",null,100,"2017-09-20",-100]
[null,6,null,null,null,null,null,-100]
[null,7,null,null,null,null,null,-100]
[null,8,null,null,null,null,null,-100]
[null,9,null,null,null,null,null,-100]
[null,10,null,null,null,null,null,-100]
[null,11,null,null,null,null,null,-100]
[null,12,null,null,null,null,null,-100]
[null,13,null,null,null,null,null,-100]
[null,14,null,null,null,null,null,-100]
[null,15,null,null,null,null,null,-100]
[null,16,null,null,null,null,null,-100]
[null,17,null,null,null,null,null,-100]
[null,18,null,null,null,null,null,-100]
[null,19,null,null,null,null,null,-100]
[null,20,null,null,null,null,null,-100]
[null,21,null,null,null,null,null,-100]
[null,22,null,null,null,null,null,-100]
[null,23,null,null,null,null,null,-100]
[null,24,null,null,null,null,null,-100]
[null,25,null,null,null,null,null,-100]
[null,26,null,null,null,null,null,-100]
[null,27,null,null,null,null,null,-100]
[null,28,null,null,null,null,null,-100]
[null,29,null,null,null,null,null,-100]
[null,30,null,null,null,null,null,-100]
[null,31,null,null,null,null,null,-100]
[null,32,null,null,null,null,null,-100]
[null,33,null,null,null,null,null,-100]
[null,34,null,null,null,null,null,-100]
[null,35,null,null,null,null,null,-100]
[null,36,null,null,null,null,null,-100]
[null,37,null,null,null,null,null,-100]
[null,38,null,null,null,null,null,-100]
[null,39,null,null,null,null,null,-100]
[null,40,null,null,null,null,null,-100]
[null,41,null,null,null,null,null,-100]
[null,42,null,null,null,null,null,-100]
[null,43,null,null,null,null,null,-100]
[null,44,null,null,null,null,null,-100]
[null,45,null,null,null,null,null,-100]
[null,46,null,null,null,null,null,-100]
[null,47,null,null,null,null,null,-100]
[null,48,null,null,null,null,null,-100]
[null,49,null,null,null,null,null,-100]
[null,50,null,null,null,null,null,-100]
[null,51,null,null,null,null,null,-100]
[null,52,null,null,null,null,null,-100]
[null,53,null,null,null,null,null,-100]
[null,54,null,null,null,null,null,-100]
[null,55,null,null,null,null,null,-100]
[null,56,null,null,null,null,null,-100]
[null,57,null,null,null,null,null,-100]
[null,58,null,null,null,null,null,-100]
[null,59,null,null,null,null,null,-100]
[null,60,null,null,null,null,null,-100]
[null,61,null,null,null,null,null,-100]
[null,62,null,null,null,null,null,-100]
[null,63,null,null,null,null,null,-100]
[null,64,null,null,null,null,null,-100]
[null,65,null,null,null,null,null,-100]
[null,66,null,null,null,null,null,{"$f":"H71+E72-F72","v":-100}]
[null,{"$f":"B72+1","v":67},null,null,null,null,null,-100]
[null,68,null,null,null,null,null,-100]
[null,69,null,null,null,null,null,-100]
[null,70,null,null,null,null,null,-100]
[null,71,null,null,null,null,null,-100]
[null,72,null,null,null,null,null,-100]
[null,73,null,null,null,null,null,-100]
[null,74,null,null,null,null,null,-100]
[null,75,null,null,null,null,null,-100]
[null,76,null,null,null,null,null,-100]
[null,77,null,null,null,null,null,-100]
[null,78,null,null,null,null,null,-100]
[null,79,null,null,null,null,null,-100]
[null,80,null,null,null,null,null,-100]
[null,81,null,null,null,null,null,-100]
[null,82,null,null,null,null,null,-100]
[null,83,null,null,null,null,null,-100]
[null,84,null,null,null,null,null,-100]
[null,85,null,null,null,null,null,-100]
[null,86,null,null,null,null,null,-100]
[null,87,null,null,null,null,null,-100]
[null,88,null,null,null,null,null,-100]
[null,89,null,null,null,null,null,-100]
[null,90,null,null,null,null,null,-100]
[null,91,null,null,null,null,null,-100]
[null,92,null,null,null,null,null,-100]
[null,93,null,null,null,null,null,-100]
[null,94,null,null,null,null,null,-100]
[null,95,null,null,null,null,null,-100]
[null,96,null,null,null,null,null,-100]
[null,97,null,null,null,null,null,-100]
[null,null,null,null,null,null,null,-100]
[null,null,null,null,null,null,null,-100]
[null,null,null,null,null,null,null,-100]
[null,null,null,null,null,null,null,-100]
[null,null,null,null,null,null,null,-100]
[null,null,null,null,null,null,null,-100]
[null,null,null,null,null,null,null,-100]
[null,null,null,null,null,null,null,-100]
[null,null,null,null,null,null,null,-100]
[null,null,null,null,null,null,null,-100]
[null,null,null,null,null,null,null,-100]
[null,null,null,null,null,null,null,-100]
[null,null,null,null,null,null,null,-100]
[null,null,null,null,null,null,null,-100]
[null,null,null,null,null,null,null,-100]
[null,null,null,null,null,null,null,-100]
[null,null,null,null,null,null,null,-100]
[null,null,null,null,null,null,null,-100]
[null,null,null,null,null,null,null,-100]
[null,null,null,null,null,null,null,-100]
[null,null,null,null,null,null,null,-100]
[null,null,null,null,null,null,null,-100]
[null,null,null,null,null,null,null,-100]
[null,null,null,null,null,null,null,-100]
[null,null,null,null,null,null,null,-100]
[null,null,null,null,null,null,null,-100]
[null,null,null,null,null,null,null,-100]
[null,null,null,null,null,null,null,-100]
[null,null,null,null,null,null,null,-100]
[null,null,null,null,null,null,null,-100]
[null,null,null,null,null,null,null,-100]
[null,null,null,null,null,null,null,-100]
[null,null,null,null,null,null,null,{"$f":"H135+E136-F136","v":-100}]
[null,null,null,null,null,null,null,-100]
[null,null,null,null,null,null,null,-100]
[null,null,null,null,null,null,null,-100]
[null,null,null,null,null,null,null,-100]
[null,null,null,null,null,null,null,-100]
[null,null,null,null,null,null,null,-100]
[null,null,null,null,null,null,null,-100]
[null,null,null,null,null,null,null,-100]
[null,null,null,null,null,null,null,-100]
[null,null,null,null,null,null,null,-100]
[null,null,null,null,null,null,null,-100]
[null,null,null,null,null,null,null,-100]
[null,null,null,null,null,null,null,-100]
[null,null,null,null,null,null,null,-100]
[null,null,null,null,null,null,null,-100]
[null,null,null,null,null,null,null,-100]
[null,null,null,null,null,null,null,-100]
[null,null,null,null,null,null,null,-100]
[null,null,null,null,null,null,null,-100]
[null,null,null,null,null,null,null,-100]
[null,null,null,null,null,null,null,-100]
[null,null,null,null,null,null,null,-100]
[null,null,null,null,null,null,null,-100]
[null,null,null,null,null,null,null,-100]
[null,null,null,null,null,null,null,-100]
[null,null,null,null,null,null,null,-100]
[null,null,null,null,null,null,null,-100]
[null,null,null,null,null,null,null,-100]
[null,null,null,null,null,null,null,-100]
[null,null,null,null,null,null,null,-100]
[null,null,null,null,null,null,null,-100]
[null,null,null,null,null,null,null,-100]
[null,null,null,null,null,null,null,-100]
[null,null,null,null,null,null,null,-100]
[null,null,null,null,null,null,null,-100]
[null,null,null,null,null,null,null,-100]
[null,null,null,null,null,null,null,-100]
[null,null,null,null,null,null,null,-100]
[null,null,null,null,null,null,null,-100]
[null,null,null,null,null,null,null,-100]
[null,null,null,null,null,null,null,-100]
[null,null,null,null,null,null,null,-100]
[null,null,null,null,null,null,null,-100]
[null,null,null,null,null,null,null,-100]
[null,null,null,null,null,null,null,-100]
[null,null,null,null,null,null,null,-100]
[null,null,null,null,null,null,null,-100]
[null,null,null,null,null,null,null,-100]
[null,null,null,null,null,null,null,-100]
[null,null,null,null,null,null,null,-100]
[null,null,null,null,null,null,null,-100]
[null,null,null,null,null,null,null,-100]
[null,null,null,null,null,null,null,-100]
[null,null,null,null,null,null,null,-100]
[null,null,null,null,null,null,null,-100]
[null,null,null,null,null,null,null,-100]
[null,null,null,null,null,null,null,-100]
[null,null,null,null,null,null,null,-100]
[null,null,null,null,null,null,null,-100]
[null,null,null,null,null,null,null,-100]
[null,null,null,null,null,null,null,-100]
[null,null,null,null,null,null,null,-100]
[null,null,null,null,null,null,null,-100]
[null,null,null,null,null,null,null,{"$f":"H199+E200-F200","v":-100}]
[null,null,null,null,null,null,null,-100]
[null,null,null,null,null,null,null,-100]
[null,null,null,null,null,null,null,-100]
[null,null,null,null,null,null,null,-100]
[null,null,null,null,null,null,null,-100]
[null,null,null,null,null,null,null,-100]
[null,null,null,null,null,null,null,-100]
[null,null,null,null,null,null,null,-100]
[null,null,null,null,null,null,null,-100]
[null,null,null,null,null,null,null,-100]
[null,null,null,null,null,null,null,-100]
[null,null,null,null,null,null,null,-100]
[null,null,null,null,null,null,null,-100]
[null,null,null,null,null,null,null,-100]
[null,null,null,null,null,null,null,-100]
[null,null,null,null,null,null,null,-100]
[null,null,null,null,null,null,null,-100]
[null,null,null,null,null,null,null,-100]
[null,null,null,null,null,null,null,-100]
[null,null,null,null,null,null,null,-100]
[null,null,null,null,null,null,null,-100]
[null,null,null,null,null,null,null,-100]
[null,null,null,null,null,null,null,-100]
[null,null,null,null,null,null,null,-100]
[null,null,null,null,null,null,null,-100]
[null,null,null,null,null,null,null,-100]
[null,null,null,null,null,null,null,-100]
[null,null,null,null,null,null,null,-100]
[null,null,null,null,null,null,null,-100]
[null,null,null,null,null,null,null,-100]
[null,null,null,null,null,null,null,-100]
[null,null,null,null,null,null,null,-100]
[null,null,null,null,null,null,null,-100]
[null,null,null,null,null,null,null,-100]
[null,null,null,null,null,null,null,-100]
[null,null,null,null,null,null,null,-100]
[null,null,null,null,null,null,null,-100]
[null,null,null,null,null,null,null,-100]
[null,null,null,null,null,null,null,-100]
[null,null,null,null,null,null,null,-100]
[null,null,null,null,null,null,null,-100]
[null,null,null,null,null,null,null,-100]
[null,null,null,null,null,null,null,-100]
[null,null,null,null,null,null,null,-100]
[null,null,null,null,null,null,null,-100]
[null,null,null,null,null,null,null,-100]
[null,null,null,null,null,null,null,-100]
[null,null,null,null,null,null,null,-100]
[null,null,null,null,null,null,null,-100]
[null,null,null,null,null,null,null,-100]
[null,null,null,null,null,null,null,-100]
[null,null,null,null,null,null,null,-100]
[null,null,null,null,null,null,null,-100]
[null,null,null,null,null,null,null,-100]
[null,null,null,null,null,null,null,-100]
[null,null,null,null,null,null,null,-100]
[null,null,null,null,null,null,null,-100]
[null,null,null,null,null,null,null,-100]
[null,null,null,null,null,null,null,-100]
[null,null,null,null,null,null,null,-100]
[null,null,null,null,null,null,null,-100]
[null,null,null,null,null,null,null,-100]
[null,null,null,null,null,null,null,-100]
[null,null,null,null,null,null,null,{"$f":"H263+E264-F264","v":-100}]
[null,null,null,null,null,null,null,-100]
[null,null,null,null,null,null,null,-100]
[null,null,null,null,null,null,null,-100]
[null,null,null,null,null,null,null,-100]
[null,null,null,null,null,null,null,-100]
[null,null,null,null,null,null,null,-100]
[null,null,null,null,null,null,null,-100]
[null,null,null,null,null,null,null,-100]
[null,null,null,null,null,null,null,-100]
[null,null,null,null,null,null,null,-100]
[null,null,null,null,null,null,null,-100]
[null,null,null,null,null,null,null,-100]
[null,null,null,null,null,null,null,-100]
[null,null,null,null,null,null,null,-100]
[null,null,null,null,null,null,null,-100]
[null,null,null,null,null,null,null,-100]
[null,null,null,null,null,null,null,-100]
[null,null,null,null,null,null,null,-100]
[null,null,null,null,null,null,null,-100]
[null,null,null,null,null,null,null,-100]
[null,null,null,null,null,null,null,-100]
[null,null,null,null,null,null,null,-100]
[null,null,null,null,null,null,null,-100]
[null,null,null,null,null,null,null,-100]
[null,null,null,null,null,null,null,-100]
[null,null,null,null,null,null,null,-100]
[null,null,null,null,null,null,null,-100]
[null,null,null,null,null,null,null,-100]
[null,null,null,null,null,null,null,-100]
[null,null,null,null,null,null,null,-100]
[null,null,null,null,null,null,null,-100]
[null,null,null,null,null,null,null,-100]
[null,null,null,null,null,null,null,-100]
[null,null,null,null,null,null,null,-100]
[null,null,null,null,null,null,null,-100]
[null,null,null,null,null,null,null,{"$f":"H299","v":-100}]

{"sheet":"КорпФирма2","index":3,"n_rows":300,"n_cols":9,"rows_kept":300,"cut":false,"hidden":false,"merged":[]}
[null,null,null,"КорпФирма1"]
[]
[null,null,"Остаток всего","Оборот","Лимит","Остаток лимита"]
[null,null,{"$f":"H300","v":-100},{"$f":"SUM(F7:F299)","v":100},0,{"$f":"E4-D4","v":-100}]
[]
[null,"№","Источник","Группа","Поступление","Выбытие","Дата","Остаток","Примечания"]
[null,1,null,"Поступление",null,null,null,{"$f":"E7-F7","v":0}]
[null,{"$f":"B7+1","v":2},null,"Производство",null,null,null,{"$f":"H7+E8-F8","v":0}]
[null,{"$f":"B8+1","v":3},null,"брак",null,null,null,0]
[null,4,null,"доработка",null,null,null,0]
[null,5,null,"Склад",null,100,"2017-09-20",-100]
[null,6,null,null,null,null,null,-100]
[null,7,null,null,null,null,null,-100]
[null,8,null,null,null,null,null,-100]
[null,9,null,null,null,null,null,-100]
[null,10,null,null,null,null,null,-100]
[null,11,null,null,null,null,null,-100]
[null,12,null,null,null,null,null,-100]
[null,13,null,null,null,null,null,-100]
[null,14,null,null,null,null,null,-100]
[null,15,null,null,null,null,null,-100]
[null,16,null,null,null,null,null,-100]
[null,17,null,null,null,null,null,-100]
[null,18,null,null,null,null,null,-100]
[null,19,null,null,null,null,null,-100]
[null,20,null,null,null,null,null,-100]
[null,21,null,null,null,null,null,-100]
[null,22,null,null,null,null,null,-100]
[null,23,null,null,null,null,null,-100]
[null,24,null,null,null,null,null,-100]
[null,25,null,null,null,null,null,-100]
[null,26,null,null,null,null,null,-100]
[null,27,null,null,null,null,null,-100]
[null,28,null,null,null,null,null,-100]
[null,29,null,null,null,null,null,-100]
[null,30,null,null,null,null,null,-100]
[null,31,null,null,null,null,null,-100]
[null,32,null,null,null,null,null,-100]
[null,33,null,null,null,null,null,-100]
[null,34,null,null,null,null,null,-100]
[null,35,null,null,null,null,null,-100]
[null,36,null,null,null,null,null,-100]
[null,37,null,null,null,null,null,-100]
[null,38,null,null,null,null,null,-100]
[null,39,null,null,null,null,null,-100]
[null,40,null,null,null,null,null,-100]
[null,41,null,null,null,null,null,-100]
[null,42,null,null,null,null,null,-100]
[null,43,null,null,null,null,null,-100]
[null,44,null,null,null,null,null,-100]
[null,45,null,null,null,null,null,-100]
[null,46,null,null,null,null,null,-100]
[null,47,null,null,null,null,null,-100]
[null,48,null,null,null,null,null,-100]
[null,49,null,null,null,null,null,-100]
[null,50,null,null,null,null,null,-100]
[null,51,null,null,null,null,null,-100]
[null,52,null,null,null,null,null,-100]
[null,53,null,null,null,null,null,-100]
[null,54,null,null,null,null,null,-100]
[null,55,null,null,null,null,null,-100]
[null,56,null,null,null,null,null,-100]
[null,57,null,null,null,null,null,-100]
[null,58,null,null,null,null,null,-100]
[null,59,null,null,null,null,null,-100]
[null,60,null,null,null,null,null,-100]
[null,61,null,null,null,null,null,-100]
[null,62,null,null,null,null,null,-100]
[null,63,null,null,null,null,null,-100]
[null,64,null,null,null,null,null,-100]
[null,65,null,null,null,null,null,-100]
[null,66,null,null,null,null,null,{"$f":"H71+E72-F72","v":-100}]
[null,{"$f":"B72+1","v":67},null,null,null,null,null,-100]
[null,68,null,null,null,null,null,-100]
[null,69,null,null,null,null,null,-100]
[null,70,null,null,null,null,null,-100]
[null,71,null,null,null,null,null,-100]
[null,72,null,null,null,null,null,-100]
[null,73,null,null,null,null,null,-100]
[null,74,null,null,null,null,null,-100]
[null,75,null,null,null,null,null,-100]
[null,76,null,null,null,null,null,-100]
[null,77,null,null,null,null,null,-100]
[null,78,null,null,null,null,null,-100]
[null,79,null,null,null,null,null,-100]
[null,80,null,null,null,null,null,-100]
[null,81,null,null,null,null,null,-100]
[null,82,null,null,null,null,null,-100]
[null,83,null,null,null,null,null,-100]
[null,84,null,null,null,null,null,-100]
[null,85,null,null,null,null,null,-100]
[null,86,null,null,null,null,null,-100]
[null,87,null,null,null,null,null,-100]
[null,88,null,null,null,null,null,-100]
[null,89,null,null,null,null,null,-100]
[null,90,null,null,null,null,null,-100]
[null,91,null,null,null,null,null,-100]
[null,92,null,null,null,null,null,-100]
[null,93,null,null,null,null,null,-100]
[null,94,null,null,null,null,null,-100]
[null,95,null,null,null,null,null,-100]
[null,96,null,null,null,null,null,-100]
[null,97,null,null,null,null,null,-100]
[null,null,null,null,null,null,null,-100]
[null,null,null,null,null,null,null,-100]
[null,null,null,null,null,null,null,-100]
[null,null,null,null,null,null,null,-100]
[null,null,null,null,null,null,null,-100]
[null,null,null,null,null,null,null,-100]
[null,null,null,null,null,null,null,-100]
[null,null,null,null,null,null,null,-100]
[null,null,null,null,null,null,null,-100]
[null,null,null,null,null,null,null,-100]
[null,null,null,null,null,null,null,-100]
[null,null,null,null,null,null,null,-100]
[null,null,null,null,null,null,null,-100]
[null,null,null,null,null,null,null,-100]
[null,null,null,null,null,null,null,-100]
[null,null,null,null,null,null,null,-100]
[null,null,null,null,null,null,null,-100]
[null,null,null,null,null,null,null,-100]
[null,null,null,null,null,null,null,-100]
[null,null,null,null,null,null,null,-100]
[null,null,null,null,null,null,null,-100]
[null,null,null,null,null,null,null,-100]
[null,null,null,null,null,null,null,-100]
[null,null,null,null,null,null,null,-100]
[null,null,null,null,null,null,null,-100]
[null,null,null,null,null,null,null,-100]
[null,null,null,null,null,null,null,-100]
[null,null,null,null,null,null,null,-100]
[null,null,null,null,null,null,null,-100]
[null,null,null,null,null,null,null,-100]
[null,null,null,null,null,null,null,-100]
[null,null,null,null,null,null,null,-100]
[null,null,null,null,null,null,null,{"$f":"H135+E136-F136","v":-100}]
[null,null,null,null,null,null,null,-100]
[null,null,null,null,null,null,null,-100]
[null,null,null,null,null,null,null,-100]
[null,null,null,null,null,null,null,-100]
[null,null,null,null,null,null,null,-100]
[null,null,null,null,null,null,null,-100]
[null,null,null,null,null,null,null,-100]
[null,null,null,null,null,null,null,-100]
[null,null,null,null,null,null,null,-100]
[null,null,null,null,null,null,null,-100]
[null,null,null,null,null,null,null,-100]
[null,null,null,null,null,null,null,-100]
[null,null,null,null,null,null,null,-100]
[null,null,null,null,null,null,null,-100]
[null,null,null,null,null,null,null,-100]
[null,null,null,null,null,null,null,-100]
[null,null,null,null,null,null,null,-100]
[null,null,null,null,null,null,null,-100]
[null,null,null,null,null,null,null,-100]
[null,null,null,null,null,null,null,-100]
[null,null,null,null,null,null,null,-100]
[null,null,null,null,null,null,null,-100]
[null,null,null,null,null,null,null,-100]
[null,null,null,null,null,null,null,-100]
[null,null,null,null,null,null,null,-100]
[null,null,null,null,null,null,null,-100]
[null,null,null,null,null,null,null,-100]
[null,null,null,null,null,null,null,-100]
[null,null,null,null,null,null,null,-100]
[null,null,null,null,null,null,null,-100]
[null,null,null,null,null,null,null,-100]
[null,null,null,null,null,null,null,-100]
[null,null,null,null,null,null,null,-100]
[null,null,null,null,null,null,null,-100]
[null,null,null,null,null,null,null,-100]
[null,null,null,null,null,null,null,-100]
[null,null,null,null,null,null,null,-100]
[null,null,null,null,null,null,null,-100]
[null,null,null,null,null,null,null,-100]
[null,null,null,null,null,null,null,-100]
[null,null,null,null,null,null,null,-100]
[null,null,null,null,null,null,null,-100]
[null,null,null,null,null,null,null,-100]
[null,null,null,null,null,null,null,-100]
[null,null,null,null,null,null,null,-100]
[null,null,null,null,null,null,null,-100]
[null,null,null,null,null,null,null,-100]
[null,null,null,null,null,null,null,-100]
[null,null,null,null,null,null,null,-100]
[null,null,null,null,null,null,null,-100]
[null,null,null,null,null,null,null,-100]
[null,null,null,null,null,null,null,-100]
[null,null,null,null,null,null,null,-100]
[null,null,null,null,null,null,null,-100]
[null,null,null,null,null,null,null,-100]
[null,null,null,null,null,null,null,-100]
[null,null,null,null,null,null,null,-100]
[null,null,null,null,null,null,null,-100]
[null,null,null,null,null,null,null,-100]
[null,null,null,null,null,null,null,-100]
[null,null,null,null,null,null,null,-100]
[null,null,null,null,null,null,null,-100]
[null,null,null,null,null,null,null,-100]
[null,null,null,null,null,null,null,{"$f":"H199+E200-F200","v":-100}]
[null,null,null,null,null,null,null,-100]
[null,null,null,null,null,null,null,-100]
[null,null,null,null,null,null,null,-100]
[null,null,null,null,null,null,null,-100]
[null,null,null,null,null,null,null,-100]
[null,null,null,null,null,null,null,-100]
[null,null,null,null,null,null,null,-100]
[null,null,null,null,null,null,null,-100]
[null,null,null,null,null,null,null,-100]
[null,null,null,null,null,null,null,-100]
[null,null,null,null,null,null,null,-100]
[null,null,null,null,null,null,null,-100]
[null,null,null,null,null,null,null,-100]
[null,null,null,null,null,null,null,-100]
[null,null,null,null,null,null,null,-100]
[null,null,null,null,null,null,null,-100]
[null,null,null,null,null,null,null,-100]
[null,null,null,null,null,null,null,-100]
[null,null,null,null,null,null,null,-100]
[null,null,null,null,null,null,null,-100]
[null,null,null,null,null,null,null,-100]
[null,null,null,null,null,null,null,-100]
[null,null,null,null,null,null,null,-100]
[null,null,null,null,null,null,null,-100]
[null,null,null,null,null,null,null,-100]
[null,null,null,null,null,null,null,-100]
[null,null,null,null,null,null,null,-100]
[null,null,null,null,null,null,null,-100]
[null,null,null,null,null,null,null,-100]
[null,null,null,null,null,null,null,-100]
[null,null,null,null,null,null,null,-100]
[null,null,null,null,null,null,null,-100]
[null,null,null,null,null,null,null,-100]
[null,null,null,null,null,null,null,-100]
[null,null,null,null,null,null,null,-100]
[null,null,null,null,null,null,null,-100]
[null,null,null,null,null,null,null,-100]
[null,null,null,null,null,null,null,-100]
[null,null,null,null,null,null,null,-100]
[null,null,null,null,null,null,null,-100]
[null,null,null,null,null,null,null,-100]
[null,null,null,null,null,null,null,-100]
[null,null,null,null,null,null,null,-100]
[null,null,null,null,null,null,null,-100]
[null,null,null,null,null,null,null,-100]
[null,null,null,null,null,null,null,-100]
[null,null,null,null,null,null,null,-100]
[null,null,null,null,null,null,null,-100]
[null,null,null,null,null,null,null,-100]
[null,null,null,null,null,null,null,-100]
[null,null,null,null,null,null,null,-100]
[null,null,null,null,null,null,null,-100]
[null,null,null,null,null,null,null,-100]
[null,null,null,null,null,null,null,-100]
[null,null,null,null,null,null,null,-100]
[null,null,null,null,null,null,null,-100]
[null,null,null,null,null,null,null,-100]
[null,null,null,null,null,null,null,-100]
[null,null,null,null,null,null,null,-100]
[null,null,null,null,null,null,null,-100]
[null,null,null,null,null,null,null,-100]
[null,null,null,null,null,null,null,-100]
[null,null,null,null,null,null,null,-100]
[null,null,null,null,null,null,null,{"$f":"H263+E264-F264","v":-100}]
[null,null,null,null,null,null,null,-100]
[null,null,null,null,null,null,null,-100]
[null,null,null,null,null,null,null,-100]
[null,null,null,null,null,null,null,-100]
[null,null,null,null,null,null,null,-100]
[null,null,null,null,null,null,null,-100]
[null,null,null,null,null,null,null,-100]
[null,null,null,null,null,null,null,-100]
[null,null,null,null,null,null,null,-100]
[null,null,null,null,null,null,null,-100]
[null,null,null,null,null,null,null,-100]
[null,null,null,null,null,null,null,-100]
[null,null,null,null,null,null,null,-100]
[null,null,null,null,null,null,null,-100]
[null,null,null,null,null,null,null,-100]
[null,null,null,null,null,null,null,-100]
[null,null,null,null,null,null,null,-100]
[null,null,null,null,null,null,null,-100]
[null,null,null,null,null,null,null,-100]
[null,null,null,null,null,null,null,-100]
[null,null,null,null,null,null,null,-100]
[null,null,null,null,null,null,null,-100]
[null,null,null,null,null,null,null,-100]
[null,null,null,null,null,null,null,-100]
[null,null,null,null,null,null,null,-100]
[null,null,null,null,null,null,null,-100]
[null,null,null,null,null,null,null,-100]
[null,null,null,null,null,null,null,-100]
[null,null,null,null,null,null,null,-100]
[null,null,null,null,null,null,null,-100]
[null,null,null,null,null,null,null,-100]
[null,null,null,null,null,null,null,-100]
[null,null,null,null,null,null,null,-100]
[null,null,null,null,null,null,null,-100]
[null,null,null,null,null,null,null,-100]
[null,null,null,null,null,null,null,{"$f":"H299","v":-100}]

{"sheet":"ИП1","index":4,"n_rows":300,"n_cols":9,"rows_kept":300,"cut":false,"hidden":false,"merged":[]}
[null,null,null,"ИП"]
[]
[null,null,"Остаток всего","Оборот","Лимит","Остаток лимита"]
[null,null,{"$f":"H300","v":0},{"$f":"SUM(F7:F299)","v":0},0,{"$f":"E4-D4","v":0}]
[]
[null,"№","Источник","Группа","Поступление","Выбытие","Дата","Остаток","Примечания"]
[null,1,null,"Поступление",null,null,null,{"$f":"E7-F7","v":0}]
[null,{"$f":"B7+1","v":2},null,"Производство",null,null,null,{"$f":"H7+E8-F8","v":0}]
[null,{"$f":"B8+1","v":3},null,"брак",null,null,null,0]
[null,4,null,"доработка",null,null,null,0]
[null,5,null,"Склад",null,null,null,0]
[null,6,null,null,null,null,null,0]
[null,7,null,null,null,null,null,0]
[null,8,null,null,null,null,null,0]
[null,9,null,null,null,null,null,0]
[null,10,null,null,null,null,null,0]
[null,11,null,null,null,null,null,0]
[null,12,null,null,null,null,null,0]
[null,13,null,null,null,null,null,0]
[null,14,null,null,null,null,null,0]
[null,15,null,null,null,null,null,0]
[null,16,null,null,null,null,null,0]
[null,17,null,null,null,null,null,0]
[null,18,null,null,null,null,null,0]
[null,19,null,null,null,null,null,0]
[null,20,null,null,null,null,null,0]
[null,21,null,null,null,null,null,0]
[null,22,null,null,null,null,null,0]
[null,23,null,null,null,null,null,0]
[null,24,null,null,null,null,null,0]
[null,25,null,null,null,null,null,0]
[null,26,null,null,null,null,null,0]
[null,27,null,null,null,null,null,0]
[null,28,null,null,null,null,null,0]
[null,29,null,null,null,null,null,0]
[null,30,null,null,null,null,null,0]
[null,31,null,null,null,null,null,0]
[null,32,null,null,null,null,null,0]
[null,33,null,null,null,null,null,0]
[null,34,null,null,null,null,null,0]
[null,35,null,null,null,null,null,0]
[null,36,null,null,null,null,null,0]
[null,37,null,null,null,null,null,0]
[null,38,null,null,null,null,null,0]
[null,39,null,null,null,null,null,0]
[null,40,null,null,null,null,null,0]
[null,41,null,null,null,null,null,0]
[null,42,null,null,null,null,null,0]
[null,43,null,null,null,null,null,0]
[null,44,null,null,null,null,null,0]
[null,45,null,null,null,null,null,0]
[null,46,null,null,null,null,null,0]
[null,47,null,null,null,null,null,0]
[null,48,null,null,null,null,null,0]
[null,49,null,null,null,null,null,0]
[null,50,null,null,null,null,null,0]
[null,51,null,null,null,null,null,0]
[null,52,null,null,null,null,null,0]
[null,53,null,null,null,null,null,0]
[null,54,null,null,null,null,null,0]
[null,55,null,null,null,null,null,0]
[null,56,null,null,null,null,null,0]
[null,57,null,null,null,null,null,0]
[null,58,null,null,null,null,null,0]
[null,59,null,null,null,null,null,0]
[null,60,null,null,null,null,null,0]
[null,61,null,null,null,null,null,0]
[null,62,null,null,null,null,null,0]
[null,63,null,null,null,null,null,0]
[null,64,null,null,null,null,null,0]
[null,65,null,null,null,null,null,0]
[null,66,null,null,null,null,null,{"$f":"H71+E72-F72","v":0}]
[null,{"$f":"B72+1","v":67},null,null,null,null,null,0]
[null,68,null,null,null,null,null,0]
[null,69,null,null,null,null,null,0]
[null,70,null,null,null,null,null,0]
[null,71,null,null,null,null,null,0]
[null,72,null,null,null,null,null,0]
[null,73,null,null,null,null,null,0]
[null,74,null,null,null,null,null,0]
[null,75,null,null,null,null,null,0]
[null,76,null,null,null,null,null,0]
[null,77,null,null,null,null,null,0]
[null,78,null,null,null,null,null,0]
[null,79,null,null,null,null,null,0]
[null,80,null,null,null,null,null,0]
[null,81,null,null,null,null,null,0]
[null,82,null,null,null,null,null,0]
[null,83,null,null,null,null,null,0]
[null,84,null,null,null,null,null,0]
[null,85,null,null,null,null,null,0]
[null,86,null,null,null,null,null,0]
[null,87,null,null,null,null,null,0]
[null,88,null,null,null,null,null,0]
[null,89,null,null,null,null,null,0]
[null,90,null,null,null,null,null,0]
[null,91,null,null,null,null,null,0]
[null,92,null,null,null,null,null,0]
[null,93,null,null,null,null,null,0]
[null,94,null,null,null,null,null,0]
[null,95,null,null,null,null,null,0]
[null,96,null,null,null,null,null,0]
[null,97,null,null,null,null,null,0]
[null,null,null,null,null,null,null,0]
[null,null,null,null,null,null,null,0]
[null,null,null,null,null,null,null,0]
[null,null,null,null,null,null,null,0]
[null,null,null,null,null,null,null,0]
[null,null,null,null,null,null,null,0]
[null,null,null,null,null,null,null,0]
[null,null,null,null,null,null,null,0]
[null,null,null,null,null,null,null,0]
[null,null,null,null,null,null,null,0]
[null,null,null,null,null,null,null,0]
[null,null,null,null,null,null,null,0]
[null,null,null,null,null,null,null,0]
[null,null,null,null,null,null,null,0]
[null,null,null,null,null,null,null,0]
[null,null,null,null,null,null,null,0]
[null,null,null,null,null,null,null,0]
[null,null,null,null,null,null,null,0]
[null,null,null,null,null,null,null,0]
[null,null,null,null,null,null,null,0]
[null,null,null,null,null,null,null,0]
[null,null,null,null,null,null,null,0]
[null,null,null,null,null,null,null,0]
[null,null,null,null,null,null,null,0]
[null,null,null,null,null,null,null,0]
[null,null,null,null,null,null,null,0]
[null,null,null,null,null,null,null,0]
[null,null,null,null,null,null,null,0]
[null,null,null,null,null,null,null,0]
[null,null,null,null,null,null,null,0]
[null,null,null,null,null,null,null,0]
[null,null,null,null,null,null,null,0]
[null,null,null,null,null,null,null,{"$f":"H135+E136-F136","v":0}]
[null,null,null,null,null,null,null,0]
[null,null,null,null,null,null,null,0]
[null,null,null,null,null,null,null,0]
[null,null,null,null,null,null,null,0]
[null,null,null,null,null,null,null,0]
[null,null,null,null,null,null,null,0]
[null,null,null,null,null,null,null,0]
[null,null,null,null,null,null,null,0]
[null,null,null,null,null,null,null,0]
[null,null,null,null,null,null,null,0]
[null,null,null,null,null,null,null,0]
[null,null,null,null,null,null,null,0]
[null,null,null,null,null,null,null,0]
[null,null,null,null,null,null,null,0]
[null,null,null,null,null,null,null,0]
[null,null,null,null,null,null,null,0]
[null,null,null,null,null,null,null,0]
[null,null,null,null,null,null,null,0]
[null,null,null,null,null,null,null,0]
[null,null,null,null,null,null,null,0]
[null,null,null,null,null,null,null,0]
[null,null,null,null,null,null,null,0]
[null,null,null,null,null,null,null,0]
[null,null,null,null,null,null,null,0]
[null,null,null,null,null,null,null,0]
[null,null,null,null,null,null,null,0]
[null,null,null,null,null,null,null,0]
[null,null,null,null,null,null,null,0]
[null,null,null,null,null,null,null,0]
[null,null,null,null,null,null,null,0]
[null,null,null,null,null,null,null,0]
[null,null,null,null,null,null,null,0]
[null,null,null,null,null,null,null,0]
[null,null,null,null,null,null,null,0]
[null,null,null,null,null,null,null,0]
[null,null,null,null,null,null,null,0]
[null,null,null,null,null,null,null,0]
[null,null,null,null,null,null,null,0]
[null,null,null,null,null,null,null,0]
[null,null,null,null,null,null,null,0]
[null,null,null,null,null,null,null,0]
[null,null,null,null,null,null,null,0]
[null,null,null,null,null,null,null,0]
[null,null,null,null,null,null,null,0]
[null,null,null,null,null,null,null,0]
[null,null,null,null,null,null,null,0]
[null,null,null,null,null,null,null,0]
[null,null,null,null,null,null,null,0]
[null,null,null,null,null,null,null,0]
[null,null,null,null,null,null,null,0]
[null,null,null,null,null,null,null,0]
[null,null,null,null,null,null,null,0]
[null,null,null,null,null,null,null,0]
[null,null,null,null,null,null,null,0]
[null,null,null,null,null,null,null,0]
[null,null,null,null,null,null,null,0]
[null,null,null,null,null,null,null,0]
[null,null,null,null,null,null,null,0]
[null,null,null,null,null,null,null,0]
[null,null,null,null,null,null,null,0]
[null,null,null,null,null,null,null,0]
[null,null,null,null,null,null,null,0]
[null,null,null,null,null,null,null,0]
[null,null,null,null,null,null,null,{"$f":"H199+E200-F200","v":0}]
[null,null,null,null,null,null,null,0]
[null,null,null,null,null,null,null,0]
[null,null,null,null,null,null,null,0]
[null,null,null,null,null,null,null,0]
[null,null,null,null,null,null,null,0]
[null,null,null,null,null,null,null,0]
[null,null,null,null,null,null,null,0]
[null,null,null,null,null,null,null,0]
[null,null,null,null,null,null,null,0]
[null,null,null,null,null,null,null,0]
[null,null,null,null,null,null,null,0]
[null,null,null,null,null,null,null,0]
[null,null,null,null,null,null,null,0]
[null,null,null,null,null,null,null,0]
[null,null,null,null,null,null,null,0]
[null,null,null,null,null,null,null,0]
[null,null,null,null,null,null,null,0]
[null,null,null,null,null,null,null,0]
[null,null,null,null,null,null,null,0]
[null,null,null,null,null,null,null,0]
[null,null,null,null,null,null,null,0]
[null,null,null,null,null,null,null,0]
[null,null,null,null,null,null,null,0]
[null,null,null,null,null,null,null,0]
[null,null,null,null,null,null,null,0]
[null,null,null,null,null,null,null,0]
[null,null,null,null,null,null,null,0]
[null,null,null,null,null,null,null,0]
[null,null,null,null,null,null,null,0]
[null,null,null,null,null,null,null,0]
[null,null,null,null,null,null,null,0]
[null,null,null,null,null,null,null,0]
[null,null,null,null,null,null,null,0]
[null,null,null,null,null,null,null,0]
[null,null,null,null,null,null,null,0]
[null,null,null,null,null,null,null,0]
[null,null,null,null,null,null,null,0]
[null,null,null,null,null,null,null,0]
[null,null,null,null,null,null,null,0]
[null,null,null,null,null,null,null,0]
[null,null,null,null,null,null,null,0]
[null,null,null,null,null,null,null,0]
[null,null,null,null,null,null,null,0]
[null,null,null,null,null,null,null,0]
[null,null,null,null,null,null,null,0]
[null,null,null,null,null,null,null,0]
[null,null,null,null,null,null,null,0]
[null,null,null,null,null,null,null,0]
[null,null,null,null,null,null,null,0]
[null,null,null,null,null,null,null,0]
[null,null,null,null,null,null,null,0]
[null,null,null,null,null,null,null,0]
[null,null,null,null,null,null,null,0]
[null,null,null,null,null,null,null,0]
[null,null,null,null,null,null,null,0]
[null,null,null,null,null,null,null,0]
[null,null,null,null,null,null,null,0]
[null,null,null,null,null,null,null,0]
[null,null,null,null,null,null,null,0]
[null,null,null,null,null,null,null,0]
[null,null,null,null,null,null,null,0]
[null,null,null,null,null,null,null,0]
[null,null,null,null,null,null,null,0]
[null,null,null,null,null,null,null,{"$f":"H263+E264-F264","v":0}]
[null,null,null,null,null,null,null,0]
[null,null,null,null,null,null,null,0]
[null,null,null,null,null,null,null,0]
[null,null,null,null,null,null,null,0]
[null,null,null,null,null,null,null,0]
[null,null,null,null,null,null,null,0]
[null,null,null,null,null,null,null,0]
[null,null,null,null,null,null,null,0]
[null,null,null,null,null,null,null,0]
[null,null,null,null,null,null,null,0]
[null,null,null,null,null,null,null,0]
[null,null,null,null,null,null,null,0]
[null,null,null,null,null,null,null,0]
[null,null,null,null,null,null,null,0]
[null,null,null,null,null,null,null,0]
[null,null,null,null,null,null,null,0]
[null,null,null,null,null,null,null,0]
[null,null,null,null,null,null,null,0]
[null,null,null,null,null,null,null,0]
[null,null,null,null,null,null,null,0]
[null,null,null,null,null,null,null,0]
[null,null,null,null,null,null,null,0]
[null,null,null,null,null,null,null,0]
[null,null,null,null,null,null,null,0]
[null,null,null,null,null,null,null,0]
[null,null,null,null,null,null,null,0]
[null,null,null,null,null,null,null,0]
[null,null,null,null,null,null,null,0]
[null,null,null,null,null,null,null,0]
[null,null,null,null,null,null,null,0]
[null,null,null,null,null,null,null,0]
[null,null,null,null,null,null,null,0]
[null,null,null,null,null,null,null,0]
[null,null,null,null,null,null,null,0]
[null,null,null,null,null,null,null,0]
[null,null,null,null,null,null,null,{"$f":"H299","v":0}]

{"sheet":"ИП2","index":5,"n_rows":300,"n_cols":9,"rows_kept":300,"cut":false,"hidden":false,"merged":[]}
[null,null,null,"ИП"]
[]
[null,null,"Остаток всего","Оборот","Лимит","Остаток лимита"]
[null,null,{"$f":"H300","v":0},{"$f":"SUM(F7:F299)","v":0},0,{"$f":"E4-D4","v":0}]
[]
[null,"№","Источник","Группа","Поступление","Выбытие","Дата","Остаток","Примечания"]
[null,1,null,"Поступление",null,null,null,{"$f":"E7-F7","v":0}]
[null,{"$f":"B7+1","v":2},null,"Производство",null,null,null,{"$f":"H7+E8-F8","v":0}]
[null,{"$f":"B8+1","v":3},null,"брак",null,null,null,0]
[null,4,null,"доработка",null,null,null,0]
[null,5,null,"Склад",null,null,null,0]
[null,6,null,null,null,null,null,0]
[null,7,null,null,null,null,null,0]
[null,8,null,null,null,null,null,0]
[null,9,null,null,null,null,null,0]
[null,10,null,null,null,null,null,0]
[null,11,null,null,null,null,null,0]
[null,12,null,null,null,null,null,0]
[null,13,null,null,null,null,null,0]
[null,14,null,null,null,null,null,0]
[null,15,null,null,null,null,null,0]
[null,16,null,null,null,null,null,0]
[null,17,null,null,null,null,null,0]
[null,18,null,null,null,null,null,0]
[null,19,null,null,null,null,null,0]
[null,20,null,null,null,null,null,0]
[null,21,null,null,null,null,null,0]
[null,22,null,null,null,null,null,0]
[null,23,null,null,null,null,null,0]
[null,24,null,null,null,null,null,0]
[null,25,null,null,null,null,null,0]
[null,26,null,null,null,null,null,0]
[null,27,null,null,null,null,null,0]
[null,28,null,null,null,null,null,0]
[null,29,null,null,null,null,null,0]
[null,30,null,null,null,null,null,0]
[null,31,null,null,null,null,null,0]
[null,32,null,null,null,null,null,0]
[null,33,null,null,null,null,null,0]
[null,34,null,null,null,null,null,0]
[null,35,null,null,null,null,null,0]
[null,36,null,null,null,null,null,0]
[null,37,null,null,null,null,null,0]
[null,38,null,null,null,null,null,0]
[null,39,null,null,null,null,null,0]
[null,40,null,null,null,null,null,0]
[null,41,null,null,null,null,null,0]
[null,42,null,null,null,null,null,0]
[null,43,null,null,null,null,null,0]
[null,44,null,null,null,null,null,0]
[null,45,null,null,null,null,null,0]
[null,46,null,null,null,null,null,0]
[null,47,null,null,null,null,null,0]
[null,48,null,null,null,null,null,0]
[null,49,null,null,null,null,null,0]
[null,50,null,null,null,null,null,0]
[null,51,null,null,null,null,null,0]
[null,52,null,null,null,null,null,0]
[null,53,null,null,null,null,null,0]
[null,54,null,null,null,null,null,0]
[null,55,null,null,null,null,null,0]
[null,56,null,null,null,null,null,0]
[null,57,null,null,null,null,null,0]
[null,58,null,null,null,null,null,0]
[null,59,null,null,null,null,null,0]
[null,60,null,null,null,null,null,0]
[null,61,null,null,null,null,null,0]
[null,62,null,null,null,null,null,0]
[null,63,null,null,null,null,null,0]
[null,64,null,null,null,null,null,0]
[null,65,null,null,null,null,null,0]
[null,66,null,null,null,null,null,{"$f":"H71+E72-F72","v":0}]
[null,{"$f":"B72+1","v":67},null,null,null,null,null,0]
[null,68,null,null,null,null,null,0]
[null,69,null,null,null,null,null,0]
[null,70,null,null,null,null,null,0]
[null,71,null,null,null,null,null,0]
[null,72,null,null,null,null,null,0]
[null,73,null,null,null,null,null,0]
[null,74,null,null,null,null,null,0]
[null,75,null,null,null,null,null,0]
[null,76,null,null,null,null,null,0]
[null,77,null,null,null,null,null,0]
[null,78,null,null,null,null,null,0]
[null,79,null,null,null,null,null,0]
[null,80,null,null,null,null,null,0]
[null,81,null,null,null,null,null,0]
[null,82,null,null,null,null,null,0]
[null,83,null,null,null,null,null,0]
[null,84,null,null,null,null,null,0]
[null,85,null,null,null,null,null,0]
[null,86,null,null,null,null,null,0]
[null,87,null,null,null,null,null,0]
[null,88,null,null,null,null,null,0]
[null,89,null,null,null,null,null,0]
[null,90,null,null,null,null,null,0]
[null,91,null,null,null,null,null,0]
[null,92,null,null,null,null,null,0]
[null,93,null,null,null,null,null,0]
[null,94,null,null,null,null,null,0]
[null,95,null,null,null,null,null,0]
[null,96,null,null,null,null,null,0]
[null,97,null,null,null,null,null,0]
[null,null,null,null,null,null,null,0]
[null,null,null,null,null,null,null,0]
[null,null,null,null,null,null,null,0]
[null,null,null,null,null,null,null,0]
[null,null,null,null,null,null,null,0]
[null,null,null,null,null,null,null,0]
[null,null,null,null,null,null,null,0]
[null,null,null,null,null,null,null,0]
[null,null,null,null,null,null,null,0]
[null,null,null,null,null,null,null,0]
[null,null,null,null,null,null,null,0]
[null,null,null,null,null,null,null,0]
[null,null,null,null,null,null,null,0]
[null,null,null,null,null,null,null,0]
[null,null,null,null,null,null,null,0]
[null,null,null,null,null,null,null,0]
[null,null,null,null,null,null,null,0]
[null,null,null,null,null,null,null,0]
[null,null,null,null,null,null,null,0]
[null,null,null,null,null,null,null,0]
[null,null,null,null,null,null,null,0]
[null,null,null,null,null,null,null,0]
[null,null,null,null,null,null,null,0]
[null,null,null,null,null,null,null,0]
[null,null,null,null,null,null,null,0]
[null,null,null,null,null,null,null,0]
[null,null,null,null,null,null,null,0]
[null,null,null,null,null,null,null,0]
[null,null,null,null,null,null,null,0]
[null,null,null,null,null,null,null,0]
[null,null,null,null,null,null,null,0]
[null,null,null,null,null,null,null,0]
[null,null,null,null,null,null,null,{"$f":"H135+E136-F136","v":0}]
[null,null,null,null,null,null,null,0]
[null,null,null,null,null,null,null,0]
[null,null,null,null,null,null,null,0]
[null,null,null,null,null,null,null,0]
[null,null,null,null,null,null,null,0]
[null,null,null,null,null,null,null,0]
[null,null,null,null,null,null,null,0]
[null,null,null,null,null,null,null,0]
[null,null,null,null,null,null,null,0]
[null,null,null,null,null,null,null,0]
[null,null,null,null,null,null,null,0]
[null,null,null,null,null,null,null,0]
[null,null,null,null,null,null,null,0]
[null,null,null,null,null,null,null,0]
[null,null,null,null,null,null,null,0]
[null,null,null,null,null,null,null,0]
[null,null,null,null,null,null,null,0]
[null,null,null,null,null,null,null,0]
[null,null,null,null,null,null,null,0]
[null,null,null,null,null,null,null,0]
[null,null,null,null,null,null,null,0]
[null,null,null,null,null,null,null,0]
[null,null,null,null,null,null,null,0]
[null,null,null,null,null,null,null,0]
[null,null,null,null,null,null,null,0]
[null,null,null,null,null,null,null,0]
[null,null,null,null,null,null,null,0]
[null,null,null,null,null,null,null,0]
[null,null,null,null,null,null,null,0]
[null,null,null,null,null,null,null,0]
[null,null,null,null,null,null,null,0]
[null,null,null,null,null,null,null,0]
[null,null,null,null,null,null,null,0]
[null,null,null,null,null,null,null,0]
[null,null,null,null,null,null,null,0]
[null,null,null,null,null,null,null,0]
[null,null,null,null,null,null,null,0]
[null,null,null,null,null,null,null,0]
[null,null,null,null,null,null,null,0]
[null,null,null,null,null,null,null,0]
[null,null,null,null,null,null,null,0]
[null,null,null,null,null,null,null,0]
[null,null,null,null,null,null,null,0]
[null,null,null,null,null,null,null,0]
[null,null,null,null,null,null,null,0]
[null,null,null,null,null,null,null,0]
[null,null,null,null,null,null,null,0]
[null,null,null,null,null,null,null,0]
[null,null,null,null,null,null,null,0]
[null,null,null,null,null,null,null,0]
[null,null,null,null,null,null,null,0]
[null,null,null,null,null,null,null,0]
[null,null,null,null,null,null,null,0]
[null,null,null,null,null,null,null,0]
[null,null,null,null,null,null,null,0]
[null,null,null,null,null,null,null,0]
[null,null,null,null,null,null,null,0]
[null,null,null,null,null,null,null,0]
[null,null,null,null,null,null,null,0]
[null,null,null,null,null,null,null,0]
[null,null,null,null,null,null,null,0]
[null,null,null,null,null,null,null,0]
[null,null,null,null,null,null,null,0]
[null,null,null,null,null,null,null,{"$f":"H199+E200-F200","v":0}]
[null,null,null,null,null,null,null,0]
[null,null,null,null,null,null,null,0]
[null,null,null,null,null,null,null,0]
[null,null,null,null,null,null,null,0]
[null,null,null,null,null,null,null,0]
[null,null,null,null,null,null,null,0]
[null,null,null,null,null,null,null,0]
[null,null,null,null,null,null,null,0]
[null,null,null,null,null,null,null,0]
[null,null,null,null,null,null,null,0]
[null,null,null,null,null,null,null,0]
[null,null,null,null,null,null,null,0]
[null,null,null,null,null,null,null,0]
[null,null,null,null,null,null,null,0]
[null,null,null,null,null,null,null,0]
[null,null,null,null,null,null,null,0]
[null,null,null,null,null,null,null,0]
[null,null,null,null,null,null,null,0]
[null,null,null,null,null,null,null,0]
[null,null,null,null,null,null,null,0]
[null,null,null,null,null,null,null,0]
[null,null,null,null,null,null,null,0]
[null,null,null,null,null,null,null,0]
[null,null,null,null,null,null,null,0]
[null,null,null,null,null,null,null,0]
[null,null,null,null,null,null,null,0]
[null,null,null,null,null,null,null,0]
[null,null,null,null,null,null,null,0]
[null,null,null,null,null,null,null,0]
[null,null,null,null,null,null,null,0]
[null,null,null,null,null,null,null,0]
[null,null,null,null,null,null,null,0]
[null,null,null,null,null,null,null,0]
[null,null,null,null,null,null,null,0]
[null,null,null,null,null,null,null,0]
[null,null,null,null,null,null,null,0]
[null,null,null,null,null,null,null,0]
[null,null,null,null,null,null,null,0]
[null,null,null,null,null,null,null,0]
[null,null,null,null,null,null,null,0]
[null,null,null,null,null,null,null,0]
[null,null,null,null,null,null,null,0]
[null,null,null,null,null,null,null,0]
[null,null,null,null,null,null,null,0]
[null,null,null,null,null,null,null,0]
[null,null,null,null,null,null,null,0]
[null,null,null,null,null,null,null,0]
[null,null,null,null,null,null,null,0]
[null,null,null,null,null,null,null,0]
[null,null,null,null,null,null,null,0]
[null,null,null,null,null,null,null,0]
[null,null,null,null,null,null,null,0]
[null,null,null,null,null,null,null,0]
[null,null,null,null,null,null,null,0]
[null,null,null,null,null,null,null,0]
[null,null,null,null,null,null,null,0]
[null,null,null,null,null,null,null,0]
[null,null,null,null,null,null,null,0]
[null,null,null,null,null,null,null,0]
[null,null,null,null,null,null,null,0]
[null,null,null,null,null,null,null,0]
[null,null,null,null,null,null,null,0]
[null,null,null,null,null,null,null,0]
[null,null,null,null,null,null,null,{"$f":"H263+E264-F264","v":0}]
[null,null,null,null,null,null,null,0]
[null,null,null,null,null,null,null,0]
[null,null,null,null,null,null,null,0]
[null,null,null,null,null,null,null,0]
[null,null,null,null,null,null,null,0]
[null,null,null,null,null,null,null,0]
[null,null,null,null,null,null,null,0]
[null,null,null,null,null,null,null,0]
[null,null,null,null,null,null,null,0]
[null,null,null,null,null,null,null,0]
[null,null,null,null,null,null,null,0]
[null,null,null,null,null,null,null,0]
[null,null,null,null,null,null,null,0]
[null,null,null,null,null,null,null,0]
[null,null,null,null,null,null,null,0]
[null,null,null,null,null,null,null,0]
[null,null,null,null,null,null,null,0]
[null,null,null,null,null,null,null,0]
[null,null,null,null,null,null,null,0]
[null,null,null,null,null,null,null,0]
[null,null,null,null,null,null,null,0]
[null,null,null,null,null,null,null,0]
[null,null,null,null,null,null,null,0]
[null,null,null,null,null,null,null,0]
[null,null,null,null,null,null,null,0]
[null,null,null,null,null,null,null,0]
[null,null,null,null,null,null,null,0]
[null,null,null,null,null,null,null,0]
[null,null,null,null,null,null,null,0]
[null,null,null,null,null,null,null,0]
[null,null,null,null,null,null,null,0]
[null,null,null,null,null,null,null,0]
[null,null,null,null,null,null,null,0]
[null,null,null,null,null,null,null,0]
[null,null,null,null,null,null,null,0]
[null,null,null,null,null,null,null,{"$f":"H299","v":0}]

{"sheet":"ИП3","index":6,"n_rows":300,"n_cols":9,"rows_kept":300,"cut":false,"hidden":false,"merged":[]}
[null,null,null,"ИП"]
[]
[null,null,"Остаток всего","Оборот","Лимит","Остаток лимита"]
[null,null,{"$f":"H300","v":0},{"$f":"SUM(F7:F299)","v":0},0,{"$f":"E4-D4","v":0}]
[]
[null,"№","Источник","Группа","Поступление","Выбытие","Дата","Остаток","Примечания"]
[null,1,null,"Поступление",null,null,null,{"$f":"E7-F7","v":0}]
[null,{"$f":"B7+1","v":2},null,"Производство",null,null,null,{"$f":"H7+E8-F8","v":0}]
[null,{"$f":"B8+1","v":3},null,"брак",null,null,null,0]
[null,4,null,"доработка",null,null,null,0]
[null,5,null,"Склад",null,null,null,0]
[null,6,null,null,null,null,null,0]
[null,7,null,null,null,null,null,0]
[null,8,null,null,null,null,null,0]
[null,9,null,null,null,null,null,0]
[null,10,null,null,null,null,null,0]
[null,11,null,null,null,null,null,0]
[null,12,null,null,null,null,null,0]
[null,13,null,null,null,null,null,0]
[null,14,null,null,null,null,null,0]
[null,15,null,null,null,null,null,0]
[null,16,null,null,null,null,null,0]
[null,17,null,null,null,null,null,0]
[null,18,null,null,null,null,null,0]
[null,19,null,null,null,null,null,0]
[null,20,null,null,null,null,null,0]
[null,21,null,null,null,null,null,0]
[null,22,null,null,null,null,null,0]
[null,23,null,null,null,null,null,0]
[null,24,null,null,null,null,null,0]
[null,25,null,null,null,null,null,0]
[null,26,null,null,null,null,null,0]
[null,27,null,null,null,null,null,0]
[null,28,null,null,null,null,null,0]
[null,29,null,null,null,null,null,0]
[null,30,null,null,null,null,null,0]
[null,31,null,null,null,null,null,0]
[null,32,null,null,null,null,null,0]
[null,33,null,null,null,null,null,0]
[null,34,null,null,null,null,null,0]
[null,35,null,null,null,null,null,0]
[null,36,null,null,null,null,null,0]
[null,37,null,null,null,null,null,0]
[null,38,null,null,null,null,null,0]
[null,39,null,null,null,null,null,0]
[null,40,null,null,null,null,null,0]
[null,41,null,null,null,null,null,0]
[null,42,null,null,null,null,null,0]
[null,43,null,null,null,null,null,0]
[null,44,null,null,null,null,null,0]
[null,45,null,null,null,null,null,0]
[null,46,null,null,null,null,null,0]
[null,47,null,null,null,null,null,0]
[null,48,null,null,null,null,null,0]
[null,49,null,null,null,null,null,0]
[null,50,null,null,null,null,null,0]
[null,51,null,null,null,null,null,0]
[null,52,null,null,null,null,null,0]
[null,53,null,null,null,null,null,0]
[null,54,null,null,null,null,null,0]
[null,55,null,null,null,null,null,0]
[null,56,null,null,null,null,null,0]
[null,57,null,null,null,null,null,0]
[null,58,null,null,null,null,null,0]
[null,59,null,null,null,null,null,0]
[null,60,null,null,null,null,null,0]
[null,61,null,null,null,null,null,0]
[null,62,null,null,null,null,null,0]
[null,63,null,null,null,null,null,0]
[null,64,null,null,null,null,null,0]
[null,65,null,null,null,null,null,0]
[null,66,null,null,null,null,null,{"$f":"H71+E72-F72","v":0}]
[null,{"$f":"B72+1","v":67},null,null,null,null,null,0]
[null,68,null,null,null,null,null,0]
[null,69,null,null,null,null,null,0]
[null,70,null,null,null,null,null,0]
[null,71,null,null,null,null,null,0]
[null,72,null,null,null,null,null,0]
[null,73,null,null,null,null,null,0]
[null,74,null,null,null,null,null,0]
[null,75,null,null,null,null,null,0]
[null,76,null,null,null,null,null,0]
[null,77,null,null,null,null,null,0]
[null,78,null,null,null,null,null,0]
[null,79,null,null,null,null,null,0]
[null,80,null,null,null,null,null,0]
[null,81,null,null,null,null,null,0]
[null,82,null,null,null,null,null,0]
[null,83,null,null,null,null,null,0]
[null,84,null,null,null,null,null,0]
[null,85,null,null,null,null,null,0]
[null,86,null,null,null,null,null,0]
[null,87,null,null,null,null,null,0]
[null,88,null,null,null,null,null,0]
[null,89,null,null,null,null,null,0]
[null,90,null,null,null,null,null,0]
[null,91,null,null,null,null,null,0]
[null,92,null,null,null,null,null,0]
[null,93,null,null,null,null,null,0]
[null,94,null,null,null,null,null,0]
[null,95,null,null,null,null,null,0]
[null,96,null,null,null,null,null,0]
[null,97,null,null,null,null,null,0]
[null,null,null,null,null,null,null,0]
[null,null,null,null,null,null,null,0]
[null,null,null,null,null,null,null,0]
[null,null,null,null,null,null,null,0]
[null,null,null,null,null,null,null,0]
[null,null,null,null,null,null,null,0]
[null,null,null,null,null,null,null,0]
[null,null,null,null,null,null,null,0]
[null,null,null,null,null,null,null,0]
[null,null,null,null,null,null,null,0]
[null,null,null,null,null,null,null,0]
[null,null,null,null,null,null,null,0]
[null,null,null,null,null,null,null,0]
[null,null,null,null,null,null,null,0]
[null,null,null,null,null,null,null,0]
[null,null,null,null,null,null,null,0]
[null,null,null,null,null,null,null,0]
[null,null,null,null,null,null,null,0]
[null,null,null,null,null,null,null,0]
[null,null,null,null,null,null,null,0]
[null,null,null,null,null,null,null,0]
[null,null,null,null,null,null,null,0]
[null,null,null,null,null,null,null,0]
[null,null,null,null,null,null,null,0]
[null,null,null,null,null,null,null,0]
[null,null,null,null,null,null,null,0]
[null,null,null,null,null,null,null,0]
[null,null,null,null,null,null,null,0]
[null,null,null,null,null,null,null,0]
[null,null,null,null,null,null,null,0]
[null,null,null,null,null,null,null,0]
[null,null,null,null,null,null,null,0]
[null,null,null,null,null,null,null,{"$f":"H135+E136-F136","v":0}]
[null,null,null,null,null,null,null,0]
[null,null,null,null,null,null,null,0]
[null,null,null,null,null,null,null,0]
[null,null,null,null,null,null,null,0]
[null,null,null,null,null,null,null,0]
[null,null,null,null,null,null,null,0]
[null,null,null,null,null,null,null,0]
[null,null,null,null,null,null,null,0]
[null,null,null,null,null,null,null,0]
[null,null,null,null,null,null,null,0]
[null,null,null,null,null,null,null,0]
[null,null,null,null,null,null,null,0]
[null,null,null,null,null,null,null,0]
[null,null,null,null,null,null,null,0]
[null,null,null,null,null,null,null,0]
[null,null,null,null,null,null,null,0]
[null,null,null,null,null,null,null,0]
[null,null,null,null,null,null,null,0]
[null,null,null,null,null,null,null,0]
[null,null,null,null,null,null,null,0]
[null,null,null,null,null,null,null,0]
[null,null,null,null,null,null,null,0]
[null,null,null,null,null,null,null,0]
[null,null,null,null,null,null,null,0]
[null,null,null,null,null,null,null,0]
[null,null,null,null,null,null,null,0]
[null,null,null,null,null,null,null,0]
[null,null,null,null,null,null,null,0]
[null,null,null,null,null,null,null,0]
[null,null,null,null,null,null,null,0]
[null,null,null,null,null,null,null,0]
[null,null,null,null,null,null,null,0]
[null,null,null,null,null,null,null,0]
[null,null,null,null,null,null,null,0]
[null,null,null,null,null,null,null,0]
[null,null,null,null,null,null,null,0]
[null,null,null,null,null,null,null,0]
[null,null,null,null,null,null,null,0]
[null,null,null,null,null,null,null,0]
[null,null,null,null,null,null,null,0]
[null,null,null,null,null,null,null,0]
[null,null,null,null,null,null,null,0]
[null,null,null,null,null,null,null,0]
[null,null,null,null,null,null,null,0]
[null,null,null,null,null,null,null,0]
[null,null,null,null,null,null,null,0]
[null,null,null,null,null,null,null,0]
[null,null,null,null,null,null,null,0]
[null,null,null,null,null,null,null,0]
[null,null,null,null,null,null,null,0]
[null,null,null,null,null,null,null,0]
[null,null,null,null,null,null,null,0]
[null,null,null,null,null,null,null,0]
[null,null,null,null,null,null,null,0]
[null,null,null,null,null,null,null,0]
[null,null,null,null,null,null,null,0]
[null,null,null,null,null,null,null,0]
[null,null,null,null,null,null,null,0]
[null,null,null,null,null,null,null,0]
[null,null,null,null,null,null,null,0]
[null,null,null,null,null,null,null,0]
[null,null,null,null,null,null,null,0]
[null,null,null,null,null,null,null,0]
[null,null,null,null,null,null,null,{"$f":"H199+E200-F200","v":0}]
[null,null,null,null,null,null,null,0]
[null,null,null,null,null,null,null,0]
[null,null,null,null,null,null,null,0]
[null,null,null,null,null,null,null,0]
[null,null,null,null,null,null,null,0]
[null,null,null,null,null,null,null,0]
[null,null,null,null,null,null,null,0]
[null,null,null,null,null,null,null,0]
[null,null,null,null,null,null,null,0]
[null,null,null,null,null,null,null,0]
[null,null,null,null,null,null,null,0]
[null,null,null,null,null,null,null,0]
[null,null,null,null,null,null,null,0]
[null,null,null,null,null,null,null,0]
[null,null,null,null,null,null,null,0]
[null,null,null,null,null,null,null,0]
[null,null,null,null,null,null,null,0]
[null,null,null,null,null,null,null,0]
[null,null,null,null,null,null,null,0]
[null,null,null,null,null,null,null,0]
[null,null,null,null,null,null,null,0]
[null,null,null,null,null,null,null,0]
[null,null,null,null,null,null,null,0]
[null,null,null,null,null,null,null,0]
[null,null,null,null,null,null,null,0]
[null,null,null,null,null,null,null,0]
[null,null,null,null,null,null,null,0]
[null,null,null,null,null,null,null,0]
[null,null,null,null,null,null,null,0]
[null,null,null,null,null,null,null,0]
[null,null,null,null,null,null,null,0]
[null,null,null,null,null,null,null,0]
[null,null,null,null,null,null,null,0]
[null,null,null,null,null,null,null,0]
[null,null,null,null,null,null,null,0]
[null,null,null,null,null,null,null,0]
[null,null,null,null,null,null,null,0]
[null,null,null,null,null,null,null,0]
[null,null,null,null,null,null,null,0]
[null,null,null,null,null,null,null,0]
[null,null,null,null,null,null,null,0]
[null,null,null,null,null,null,null,0]
[null,null,null,null,null,null,null,0]
[null,null,null,null,null,null,null,0]
[null,null,null,null,null,null,null,0]
[null,null,null,null,null,null,null,0]
[null,null,null,null,null,null,null,0]
[null,null,null,null,null,null,null,0]
[null,null,null,null,null,null,null,0]
[null,null,null,null,null,null,null,0]
[null,null,null,null,null,null,null,0]
[null,null,null,null,null,null,null,0]
[null,null,null,null,null,null,null,0]
[null,null,null,null,null,null,null,0]
[null,null,null,null,null,null,null,0]
[null,null,null,null,null,null,null,0]
[null,null,null,null,null,null,null,0]
[null,null,null,null,null,null,null,0]
[null,null,null,null,null,null,null,0]
[null,null,null,null,null,null,null,0]
[null,null,null,null,null,null,null,0]
[null,null,null,null,null,null,null,0]
[null,null,null,null,null,null,null,0]
[null,null,null,null,null,null,null,{"$f":"H263+E264-F264","v":0}]
[null,null,null,null,null,null,null,0]
[null,null,null,null,null,null,null,0]
[null,null,null,null,null,null,null,0]
[null,null,null,null,null,null,null,0]
[null,null,null,null,null,null,null,0]
[null,null,null,null,null,null,null,0]
[null,null,null,null,null,null,null,0]
[null,null,null,null,null,null,null,0]
[null,null,null,null,null,null,null,0]
[null,null,null,null,null,null,null,0]
[null,null,null,null,null,null,null,0]
[null,null,null,null,null,null,null,0]
[null,null,null,null,null,null,null,0]
[null,null,null,null,null,null,null,0]
[null,null,null,null,null,null,null,0]
[null,null,null,null,null,null,null,0]
[null,null,null,null,null,null,null,0]
[null,null,null,null,null,null,null,0]
[null,null,null,null,null,null,null,0]
[null,null,null,null,null,null,null,0]
[null,null,null,null,null,null,null,0]
[null,null,null,null,null,null,null,0]
[null,null,null,null,null,null,null,0]
[null,null,null,null,null,null,null,0]
[null,null,null,null,null,null,null,0]
[null,null,null,null,null,null,null,0]
[null,null,null,null,null,null,null,0]
[null,null,null,null,null,null,null,0]
[null,null,null,null,null,null,null,0]
[null,null,null,null,null,null,null,0]
[null,null,null,null,null,null,null,0]
[null,null,null,null,null,null,null,0]
[null,null,null,null,null,null,null,0]
[null,null,null,null,null,null,null,0]
[null,null,null,null,null,null,null,0]
[null,null,null,null,null,null,null,{"$f":"H299","v":0}]

{"sheet":"Карта","index":7,"n_rows":0,"n_cols":0,"rows_kept":0,"cut":false,"hidden":false,"merged":[]}

{"sheet":"Карта1","index":8,"n_rows":0,"n_cols":0,"rows_kept":0,"cut":false,"hidden":false,"merged":[]}